[Event "Late-Titled-Tuesday-Blitz-June-25-2024"]
[Site "Chess.com"]
[Date "2024.06.25"]
[Round "7"]
[White "smallbaba"]
[Black "MarcoRiehle"]
[Result "1/2-1/2"]
[WhiteElo "2620"]
[BlackElo "2819"]
[TimeControl "180+1"]
[EndTime "15:15:57 PDT"]
[Termination "Game drawn by repetition"]

1. e4 {[%clk 0:03:00.9]} 1... e5 {[%clk 0:02:59.3]} 2. Nf3 {[%clk 0:03:00.6]}
2... Nf6 {[%clk 0:02:59.3]} 3. d4 {[%clk 0:03:00.7]} 3... Nxe4 {[%clk
0:02:59.4]} 4. Bd3 {[%clk 0:03:01]} 4... Nc6 {[%clk 0:02:58.5]} 5. Nxe5 {[%clk
0:02:59.9]} 5... Nxe5 {[%clk 0:02:58.7]} 6. dxe5 {[%clk 0:03:00.7]} 6... Nc5
{[%clk 0:02:59.4]} 7. Bc4 {[%clk 0:03:01.3]} 7... d6 {[%clk 0:02:59.6]} 8. Qf3
{[%clk 0:03:01.3]} 8... Ne6 {[%clk 0:02:53.4]} 9. exd6 {[%clk 0:03:00.8]} 9...
Bxd6 {[%clk 0:02:53.1]} 10. Be3 {[%clk 0:03:00.2]} 10... O-O {[%clk 0:02:51.3]}
11. Nc3 {[%clk 0:03:00.5]} 11... Be5 {[%clk 0:02:46.3]} 12. Bd3 {[%clk
0:03:00.5]} 12... Qf6 {[%clk 0:02:40.2]} 13. Qxf6 {[%clk 0:02:56.6]} 13... Bxf6
{[%clk 0:02:41.1]} 14. O-O-O {[%clk 0:02:56.9]} 14... c6 {[%clk 0:02:36.4]} 15.
Ne4 {[%clk 0:02:55.5]} 15... Be7 {[%clk 0:02:36.7]} 16. Bc4 {[%clk 0:02:51.9]}
16... b5 {[%clk 0:02:33.5]} 17. Bb3 {[%clk 0:02:51.6]} 17... a5 {[%clk
0:02:33.7]} 18. Nd6 {[%clk 0:02:42.3]} 18... a4 {[%clk 0:02:31.3]} 19. Nxc8
{[%clk 0:02:41.7]} 19... Raxc8 {[%clk 0:02:28.8]} 20. Bxe6 {[%clk 0:02:41.2]}
20... fxe6 {[%clk 0:02:29.7]} 21. Rd7 {[%clk 0:02:40.8]} 21... Rf7 {[%clk
0:02:25.1]} 22. Rhd1 {[%clk 0:02:39.9]} 22... h6 {[%clk 0:02:21.7]} 23. f3
{[%clk 0:02:21.3]} 23... Bf6 {[%clk 0:02:16.8]} 24. R7d6 {[%clk 0:02:12.6]}
24... Re7 {[%clk 0:02:15.2]} 25. Bc5 {[%clk 0:02:11.6]} 25... Kf7 {[%clk
0:02:07.8]} 26. Rd8 {[%clk 0:01:56.2]} 26... Rxd8 {[%clk 0:02:05.1]} 27. Rxd8
{[%clk 0:01:55.8]} 27... Rc7 {[%clk 0:02:04.5]} 28. Rf8+ {[%clk 0:01:52.4]}
28... Kg6 {[%clk 0:02:04.7]} 29. c3 {[%clk 0:01:41.7]} 29... h5 {[%clk
0:02:00.4]} 30. Kc2 {[%clk 0:01:26.3]} 30... Rd7 {[%clk 0:01:55.6]} 31. b3
{[%clk 0:01:22.8]} 31... axb3+ {[%clk 0:01:54.2]} 32. axb3 {[%clk 0:01:23.7]}
32... Rd5 {[%clk 0:01:53.9]} 33. b4 {[%clk 0:01:11.7]} 33... h4 {[%clk
0:01:52.2]} 34. g4 {[%clk 0:00:58.1]} 34... hxg3 {[%clk 0:01:37.9]} 35. hxg3
{[%clk 0:00:59]} 35... Rh5 {[%clk 0:01:38.3]} 36. Bd4 {[%clk 0:00:39.5]} 36...
Rh3 {[%clk 0:01:27.7]} 37. Bxf6 {[%clk 0:00:37]} 37... gxf6 {[%clk 0:01:28.6]}
38. Rc8 {[%clk 0:00:37.3]} 38... e5 {[%clk 0:01:25]} 39. Kb3 {[%clk 0:00:25.5]}
39... Kf5 {[%clk 0:01:24]} 40. g4+ {[%clk 0:00:25.3]} 40... Kg5 {[%clk 0:01:24]}
41. Rxc6 {[%clk 0:00:25.2]} 41... Rxf3 {[%clk 0:01:23.8]} 42. Rc5 {[%clk
0:00:25.4]} 42... Kxg4 {[%clk 0:01:23.4]} 43. Rxb5 {[%clk 0:00:25.3]} 43... e4
{[%clk 0:01:24]} 44. Rb8 {[%clk 0:00:26]} 44... e3 {[%clk 0:01:19.3]} 45. Re8
{[%clk 0:00:26.2]} 45... f5 {[%clk 0:01:19.8]} 46. b5 {[%clk 0:00:26.2]} 46...
f4 {[%clk 0:01:20.5]} 47. b6 {[%clk 0:00:26.8]} 47... Rf1 {[%clk 0:01:13.6]} 48.
Kc2 {[%clk 0:00:25.5]} 48... Rf2+ {[%clk 0:01:13.7]} 49. Kb3 {[%clk 0:00:25.1]}
49... Rf1 {[%clk 0:01:13.5]} 50. Kc2 {[%clk 0:00:25.3]} 50... Rf2+ {[%clk
0:01:10.8]} 51. Kb3 {[%clk 0:00:23.9]} 51... Rf1 {[%clk 0:01:03.9]} 1/2-1/2

[Event "Late-Titled-Tuesday-Blitz-June-25-2024"]
[Site "Chess.com"]
[Date "2024.06.25"]
[Round "7"]
[White "IndianSchoolOfSuffering"]
[Black "KNVB"]
[Result "1-0"]
[WhiteElo "2515"]
[BlackElo "2677"]
[TimeControl "180+1"]
[EndTime "15:15:59 PDT"]
[Termination "IndianSchoolOfSuffering won on time"]

1. d4 {[%clk 0:02:59.1]} 1... Nf6 {[%clk 0:02:56.6]} 2. Nf3 {[%clk 0:02:56]}
2... e6 {[%clk 0:02:55.4]} 3. c4 {[%clk 0:02:51.4]} 3... b6 {[%clk 0:02:55.8]}
4. g3 {[%clk 0:02:46.1]} 4... Ba6 {[%clk 0:02:55.4]} 5. Qc2 {[%clk 0:02:45.6]}
5... Bb7 {[%clk 0:02:53]} 6. Bg2 {[%clk 0:02:41]} 6... Bb4+ {[%clk 0:02:52.9]}
7. Bd2 {[%clk 0:02:40.6]} 7... Bxd2+ {[%clk 0:02:52.1]} 8. Nbxd2 {[%clk
0:02:39.9]} 8... d6 {[%clk 0:02:52.6]} 9. O-O {[%clk 0:02:39.4]} 9... Nbd7
{[%clk 0:02:52.6]} 10. e4 {[%clk 0:02:39]} 10... e5 {[%clk 0:02:53]} 11. d5
{[%clk 0:02:39.1]} 11... a5 {[%clk 0:02:53]} 12. Ne1 {[%clk 0:02:38.9]} 12...
Nc5 {[%clk 0:02:52.3]} 13. b3 {[%clk 0:02:36]} 13... O-O {[%clk 0:02:52.4]} 14.
a3 {[%clk 0:02:35.5]} 14... Qe7 {[%clk 0:02:34.8]} 15. Rb1 {[%clk 0:02:23.8]}
15... Bc8 {[%clk 0:02:25]} 16. b4 {[%clk 0:02:20]} 16... axb4 {[%clk 0:02:24.6]}
17. axb4 {[%clk 0:02:20.4]} 17... Ncd7 {[%clk 0:02:24.9]} 18. Nd3 {[%clk
0:02:20.5]} 18... Bb7 {[%clk 0:02:10.2]} 19. Rfc1 {[%clk 0:02:16.3]} 19... Rfb8
{[%clk 0:01:40.8]} 20. c5 {[%clk 0:02:06.5]} 20... Ba6 {[%clk 0:01:40.8]} 21. c6
{[%clk 0:01:17.9]} 21... Bxd3 {[%clk 0:01:39.4]} 22. Qxd3 {[%clk 0:01:17.1]}
22... Nf8 {[%clk 0:01:40.3]} 23. Ra1 {[%clk 0:01:16.5]} 23... Qd8 {[%clk
0:01:38.8]} 24. Nb3 {[%clk 0:01:14.6]} 24... g5 {[%clk 0:01:11.7]} 25. f3 {[%clk
0:01:06.2]} 25... h5 {[%clk 0:00:37.1]} 26. Qc3 {[%clk 0:01:05.6]} 26... Ng6
{[%clk 0:00:32.6]} 27. Rxa8 {[%clk 0:01:04.4]} 27... Rxa8 {[%clk 0:00:32.8]} 28.
Ra1 {[%clk 0:01:05]} 28... Qb8 {[%clk 0:00:13.6]} 29. Rxa8 {[%clk 0:01:03.8]}
29... Qxa8 {[%clk 0:00:13.9]} 30. Qa1 {[%clk 0:01:04.3]} 30... Qxa1+ {[%clk
0:00:05.1]} 31. Nxa1 {[%clk 0:01:05.2]} 31... g4 {[%clk 0:00:02]} 32. Nc2 {[%clk
0:01:01.1]} 32... Kg7 {[%clk 0:00:02.3]} 33. Na3 {[%clk 0:00:59.9]} 33... Kh6
{[%clk 0:00:02.3]} 34. Nb5 {[%clk 0:00:59]} 34... Ne8 {[%clk 0:00:02.7]} 35. Kf2
{[%clk 0:00:58.9]} 35... Kg5 {[%clk 0:00:02.9]} 36. h4+ {[%clk 0:00:55.3]} 36...
Kh6 {[%clk 0:00:01.8]} 37. Ke3 {[%clk 0:00:53.6]} 37... Nf8 {[%clk 0:00:01.6]}
38. fxg4 {[%clk 0:00:50.6]} 38... hxg4 {[%clk 0:00:02.5]} 39. Bf1 {[%clk
0:00:50.7]} 39... Nh7 {[%clk 0:00:02.6]} 40. Nc3 {[%clk 0:00:49]} 40... Kh5
{[%clk 0:00:01.8]} 41. Ba6 {[%clk 0:00:48.7]} 1-0

[Event "Late-Titled-Tuesday-Blitz-June-25-2024"]
[Site "Chess.com"]
[Date "2024.06.25"]
[Round "7"]
[White "Gabrielian_Artur"]
[Black "K_A_S_T_O_R"]
[Result "0-1"]
[WhiteElo "2723"]
[BlackElo "2862"]
[TimeControl "180+1"]
[EndTime "15:16:06 PDT"]
[Termination "K_A_S_T_O_R won on time"]

1. e4 {[%clk 0:03:00.9]} 1... c5 {[%clk 0:02:59.9]} 2. Nf3 {[%clk 0:03:01]} 2...
d6 {[%clk 0:03:00.3]} 3. d4 {[%clk 0:03:01.3]} 3... cxd4 {[%clk 0:03:00.6]} 4.
Nxd4 {[%clk 0:03:01.8]} 4... Nf6 {[%clk 0:03:01]} 5. Nc3 {[%clk 0:03:02.3]} 5...
a6 {[%clk 0:03:01.6]} 6. Bc4 {[%clk 0:03:02.4]} 6... e6 {[%clk 0:03:00.1]} 7.
Be3 {[%clk 0:03:02.3]} 7... b5 {[%clk 0:02:57.8]} 8. Bb3 {[%clk 0:03:02.3]} 8...
Be7 {[%clk 0:02:58.2]} 9. f3 {[%clk 0:03:00.4]} 9... O-O {[%clk 0:02:50.4]} 10.
Qe2 {[%clk 0:02:53.9]} 10... Bd7 {[%clk 0:02:43.9]} 11. a3 {[%clk 0:02:51.7]}
11... Nc6 {[%clk 0:02:43.7]} 12. O-O-O {[%clk 0:02:50.7]} 12... Qc7 {[%clk
0:02:38.4]} 13. g4 {[%clk 0:02:47.8]} 13... b4 {[%clk 0:02:23.4]} 14. Nxc6
{[%clk 0:02:36.2]} 14... Bxc6 {[%clk 0:02:23.5]} 15. axb4 {[%clk 0:02:35.9]}
15... Qb7 {[%clk 0:02:11.9]} 16. g5 {[%clk 0:02:32.6]} 16... Nd7 {[%clk
0:02:11]} 17. h4 {[%clk 0:02:32.8]} 17... Qxb4 {[%clk 0:02:09.7]} 18. h5 {[%clk
0:02:30.4]} 18... Nc5 {[%clk 0:01:59]} 19. Bxc5 {[%clk 0:02:21.8]} 19... Qxc5
{[%clk 0:01:57.5]} 20. g6 {[%clk 0:02:18.8]} 20... Bf6 {[%clk 0:01:51.8]} 21.
gxf7+ {[%clk 0:02:08.6]} 21... Kxf7 {[%clk 0:01:51.3]} 22. Rd3 {[%clk
0:01:56.2]} 22... Ke7 {[%clk 0:01:50.7]} 23. Rhd1 {[%clk 0:01:53.9]} 23... Be5
{[%clk 0:01:50.5]} 24. Kb1 {[%clk 0:01:48.3]} 24... a5 {[%clk 0:01:49.9]} 25.
Qd2 {[%clk 0:01:39.2]} 25... h6 {[%clk 0:01:40.6]} 26. Na4 {[%clk 0:00:56.6]}
26... Bxa4 {[%clk 0:01:39.7]} 27. Bxa4 {[%clk 0:00:56.5]} 27... Rab8 {[%clk
0:01:40.1]} 28. Rb3 {[%clk 0:00:51.3]} 28... Rxb3 {[%clk 0:01:38.3]} 29. cxb3
{[%clk 0:00:51.4]} 29... Rxf3 {[%clk 0:01:37.9]} 30. Rc1 {[%clk 0:00:18.9]}
30... Qd4 {[%clk 0:01:28.8]} 31. Qxd4 {[%clk 0:00:16.1]} 31... Bxd4 {[%clk
0:01:28.6]} 32. Rc7+ {[%clk 0:00:12]} 32... Kf6 {[%clk 0:01:28.3]} 33. Be8
{[%clk 0:00:12.1]} 33... Rxb3 {[%clk 0:01:13]} 34. Kc2 {[%clk 0:00:05.9]} 34...
Rxb2+ {[%clk 0:01:12.4]} 35. Kd3 {[%clk 0:00:06.3]} 35... Ke5 {[%clk 0:01:09.9]}
36. Rxg7 {[%clk 0:00:05.5]} 36... Rb3+ {[%clk 0:01:09.8]} 37. Ke2 {[%clk
0:00:05.8]} 37... Re3+ {[%clk 0:01:09.4]} 38. Kd1 {[%clk 0:00:05.7]} 38... Rxe4
{[%clk 0:01:09.6]} 39. Rg6 {[%clk 0:00:03.3]} 39... Be3 {[%clk 0:01:08.8]} 40.
Bf7 {[%clk 0:00:03.8]} 40... Kf5 {[%clk 0:01:07.2]} 41. Ke2 {[%clk 0:00:02.9]}
41... Bg5+ {[%clk 0:01:07.1]} 42. Kf3 {[%clk 0:00:03.4]} 42... d5 {[%clk
0:01:07.3]} 43. Rg8 {[%clk 0:00:03.2]} 43... Re3+ {[%clk 0:01:06.8]} 44. Kf2
{[%clk 0:00:03.7]} 44... Kf6 {[%clk 0:01:06.3]} 45. Bg6 {[%clk 0:00:02.6]} 45...
Ra3 {[%clk 0:01:03.5]} 46. Rf8+ {[%clk 0:00:02.7]} 46... Ke5 {[%clk 0:01:04]}
47. Re8 {[%clk 0:00:02.2]} 47... Kd6 {[%clk 0:00:59.4]} 0-1

[Event "Late-Titled-Tuesday-Blitz-June-25-2024"]
[Site "Chess.com"]
[Date "2024.06.25"]
[Round "7"]
[White "CoachVadim"]
[Black "vova-79"]
[Result "0-1"]
[WhiteElo "2413"]
[BlackElo "2596"]
[TimeControl "180+1"]
[EndTime "15:16:06 PDT"]
[Termination "vova-79 won on time"]

1. Nf3 {[%clk 0:03:00.9]} 1... d5 {[%clk 0:02:58.9]} 2. g3 {[%clk 0:03:01.3]}
2... c6 {[%clk 0:02:58.6]} 3. Bg2 {[%clk 0:03:01.5]} 3... Bg4 {[%clk 0:02:58.4]}
4. Ne5 {[%clk 0:02:59.4]} 4... Bh5 {[%clk 0:02:54.8]} 5. c4 {[%clk 0:02:58.2]}
5... e6 {[%clk 0:02:53.7]} 6. cxd5 {[%clk 0:02:53.6]} 6... exd5 {[%clk
0:02:53.5]} 7. O-O {[%clk 0:02:43.5]} 7... Nd7 {[%clk 0:02:51.2]} 8. d4 {[%clk
0:02:42.9]} 8... Ngf6 {[%clk 0:02:50]} 9. Nc3 {[%clk 0:02:39.8]} 9... Bd6 {[%clk
0:02:48.2]} 10. f4 {[%clk 0:02:35.5]} 10... O-O {[%clk 0:02:40.4]} 11. h3 {[%clk
0:02:35.8]} 11... h6 {[%clk 0:02:27.4]} 12. g4 {[%clk 0:02:23.7]} 12... Bg6
{[%clk 0:02:25.5]} 13. Nxg6 {[%clk 0:02:18.3]} 13... fxg6 {[%clk 0:02:26.4]} 14.
e4 {[%clk 0:02:18.8]} 14... dxe4 {[%clk 0:02:24.9]} 15. Nxe4 {[%clk 0:02:19.7]}
15... Bc7 {[%clk 0:01:52]} 16. Qb3+ {[%clk 0:02:10.9]} 16... Kh7 {[%clk
0:01:51.7]} 17. Qxb7 {[%clk 0:01:30.5]} 17... Nxe4 {[%clk 0:01:41.6]} 18. Bxe4
{[%clk 0:01:31.4]} 18... Nf6 {[%clk 0:01:41.2]} 19. Bxc6 {[%clk 0:01:13.7]}
19... Rb8 {[%clk 0:01:31.7]} 20. Qxa7 {[%clk 0:01:00]} 20... Bb6 {[%clk
0:01:14.4]} 21. Qa4 {[%clk 0:00:35.7]} 21... Bxd4+ {[%clk 0:01:13.6]} 22. Kg2
{[%clk 0:00:35.4]} 22... Bxb2 {[%clk 0:01:05.6]} 23. Bxb2 {[%clk 0:00:36.3]}
23... Rxb2+ {[%clk 0:01:04.1]} 24. Rf2 {[%clk 0:00:31.9]} 24... Rxf2+ {[%clk
0:00:59]} 25. Kxf2 {[%clk 0:00:32.8]} 25... Qd2+ {[%clk 0:00:54]} 26. Kg1 {[%clk
0:00:13.3]} 26... Nxg4 {[%clk 0:00:33.6]} 27. hxg4 {[%clk 0:00:06.5]} 27... Rxf4
{[%clk 0:00:31.6]} 28. Qa7 {[%clk 0:00:04.7]} 28... Rxg4+ {[%clk 0:00:29]} 29.
Kf1 {[%clk 0:00:01.1]} 29... Qd3+ {[%clk 0:00:22.1]} 0-1

[Event "Late-Titled-Tuesday-Blitz-June-25-2024"]
[Site "Chess.com"]
[Date "2024.06.25"]
[Round "7"]
[White "UnTucopalaTimba"]
[Black "PawnEatingZombie"]
[Result "0-1"]
[WhiteElo "2126"]
[BlackElo "2304"]
[TimeControl "180+1"]
[EndTime "15:16:06 PDT"]
[Termination "PawnEatingZombie won by resignation"]

1. e4 {[%clk 0:03:00.1]} 1... c5 {[%clk 0:02:59.7]} 2. Nf3 {[%clk 0:02:59.7]}
2... Nc6 {[%clk 0:02:59.8]} 3. c3 {[%clk 0:02:59.7]} 3... Nf6 {[%clk 0:02:58.7]}
4. e5 {[%clk 0:02:59.7]} 4... Nd5 {[%clk 0:02:59.2]} 5. d4 {[%clk 0:02:59.8]}
5... cxd4 {[%clk 0:03:00.1]} 6. cxd4 {[%clk 0:02:59.6]} 6... e6 {[%clk
0:03:00.5]} 7. Nc3 {[%clk 0:02:49.3]} 7... Nxc3 {[%clk 0:02:59.7]} 8. bxc3
{[%clk 0:02:49.3]} 8... d6 {[%clk 0:03:00.6]} 9. Bf4 {[%clk 0:02:41.3]} 9... Be7
{[%clk 0:02:58.1]} 10. Bd3 {[%clk 0:02:38]} 10... dxe5 {[%clk 0:02:47.7]} 11.
Nxe5 {[%clk 0:02:37]} 11... Nxe5 {[%clk 0:02:47]} 12. Bxe5 {[%clk 0:02:36.4]}
12... O-O {[%clk 0:02:45.2]} 13. Qh5 {[%clk 0:02:28.4]} 13... g6 {[%clk
0:02:42.4]} 14. Qh6 {[%clk 0:02:23.8]} 14... Bf6 {[%clk 0:02:40.7]} 15. f4
{[%clk 0:02:13]} 15... Bxe5 {[%clk 0:02:13.9]} 16. fxe5 {[%clk 0:02:12.9]} 16...
Qa5 {[%clk 0:02:14.5]} 17. Qd2 {[%clk 0:02:00.1]} 17... Bd7 {[%clk 0:02:09.9]}
18. O-O {[%clk 0:01:58.4]} 18... Rac8 {[%clk 0:02:07.7]} 19. Rac1 {[%clk
0:01:52.1]} 19... Bb5 {[%clk 0:02:04.8]} 20. Rf2 {[%clk 0:01:37.1]} 20... Bxd3
{[%clk 0:02:02.8]} 21. Qxd3 {[%clk 0:01:37]} 21... b5 {[%clk 0:02:00.9]} 22. Rb2
{[%clk 0:01:30.3]} 22... a6 {[%clk 0:01:59.2]} 23. Qf3 {[%clk 0:01:23.3]} 23...
Rc4 {[%clk 0:01:54.8]} 24. Rf2 {[%clk 0:01:19]} 24... Qc7 {[%clk 0:01:53.3]} 25.
Qd3 {[%clk 0:01:07]} 25... Rc8 {[%clk 0:01:50.8]} 26. Qf3 {[%clk 0:01:02.3]}
26... Rxd4 {[%clk 0:01:43.3]} 27. cxd4 {[%clk 0:00:57.6]} 27... Qxc1+ {[%clk
0:01:42.6]} 28. Rf1 {[%clk 0:00:57.7]} 28... Qc7 {[%clk 0:01:42.7]} 29. h3
{[%clk 0:00:56.7]} 29... Rd8 {[%clk 0:01:37]} 30. Qf4 {[%clk 0:00:50.3]} 30...
a5 {[%clk 0:01:27.6]} 31. Rc1 {[%clk 0:00:44.8]} 31... Qb7 {[%clk 0:01:22.4]}
32. Qd2 {[%clk 0:00:38.7]} 32... b4 {[%clk 0:01:21.2]} 33. Rc5 {[%clk
0:00:34.7]} 33... a4 {[%clk 0:01:17.1]} 34. Qd1 {[%clk 0:00:27.5]} 34... b3
{[%clk 0:01:15.2]} 35. axb3 {[%clk 0:00:27.1]} 35... axb3 {[%clk 0:01:15.7]} 36.
Rc3 {[%clk 0:00:22.6]} 36... Rb8 {[%clk 0:01:11.9]} 37. Qb1 {[%clk 0:00:20.4]}
37... b2 {[%clk 0:01:10]} 38. Rc2 {[%clk 0:00:20.1]} 38... Qb4 {[%clk
0:01:02.9]} 39. Kh1 {[%clk 0:00:20]} 39... Qxd4 {[%clk 0:01:01.4]} 40. Rc7
{[%clk 0:00:18]} 40... Qxe5 {[%clk 0:00:57.1]} 41. Rc2 {[%clk 0:00:17.5]} 41...
Qe4 {[%clk 0:00:36.9]} 42. Rc8+ {[%clk 0:00:13.1]} 42... Rxc8 {[%clk 0:00:37]}
43. Qxe4 {[%clk 0:00:13.3]} 43... Rc1+ {[%clk 0:00:37.5]} 0-1

[Event "Late-Titled-Tuesday-Blitz-June-25-2024"]
[Site "Chess.com"]
[Date "2024.06.25"]
[Round "7"]
[White "Viktor_Poddubnyi"]
[Black "katharinareinecke"]
[Result "1-0"]
[WhiteElo "2329"]
[BlackElo "2045"]
[TimeControl "180+1"]
[EndTime "15:16:06 PDT"]
[Termination "Viktor_Poddubnyi won by resignation"]

1. e4 {[%clk 0:02:59.4]} 1... c6 {[%clk 0:02:59.9]} 2. d4 {[%clk 0:02:58.8]}
2... d5 {[%clk 0:03:00]} 3. exd5 {[%clk 0:02:59.7]} 3... cxd5 {[%clk 0:03:00]}
4. c4 {[%clk 0:03:00.2]} 4... Nf6 {[%clk 0:02:57.5]} 5. Nc3 {[%clk 0:03:00.5]}
5... e6 {[%clk 0:02:57]} 6. Nf3 {[%clk 0:03:00.2]} 6... Be7 {[%clk 0:02:56.8]}
7. cxd5 {[%clk 0:03:00.5]} 7... Nxd5 {[%clk 0:02:55.6]} 8. g3 {[%clk 0:03:00.8]}
8... O-O {[%clk 0:02:53.5]} 9. Bg2 {[%clk 0:03:01]} 9... Nc6 {[%clk 0:02:48.3]}
10. O-O {[%clk 0:02:59.4]} 10... Rb8 {[%clk 0:02:36.4]} 11. Re1 {[%clk
0:02:50.4]} 11... b6 {[%clk 0:02:24.5]} 12. Nxd5 {[%clk 0:02:27.6]} 12... exd5
{[%clk 0:02:23.7]} 13. Bf4 {[%clk 0:02:22.6]} 13... Bd6 {[%clk 0:02:17.6]} 14.
Ne5 {[%clk 0:02:09.8]} 14... Nxe5 {[%clk 0:01:58.9]} 15. dxe5 {[%clk 0:02:07.1]}
15... Bb4 {[%clk 0:01:53.5]} 16. Re3 {[%clk 0:01:50.6]} 16... Bc5 {[%clk
0:01:26.5]} 17. Rd3 {[%clk 0:01:49.2]} 17... d4 {[%clk 0:01:25.8]} 18. e6 {[%clk
0:01:28.6]} 18... Bxe6 {[%clk 0:01:11.1]} 19. b4 {[%clk 0:01:25.2]} 19... Bxb4
{[%clk 0:00:59.4]} 20. Rxd4 {[%clk 0:01:23.4]} 20... Qe7 {[%clk 0:00:46.7]} 21.
Bxb8 {[%clk 0:01:17.1]} 21... Rxb8 {[%clk 0:00:45.1]} 22. Bd5 {[%clk 0:01:16.7]}
22... Bc3 {[%clk 0:00:40.4]} 23. Bxe6 {[%clk 0:00:55.1]} 23... fxe6 {[%clk
0:00:38.6]} 24. Rd7 {[%clk 0:00:52.5]} 24... Qf6 {[%clk 0:00:32.6]} 25. Rc1
{[%clk 0:00:52.3]} 25... Rf8 {[%clk 0:00:29]} 26. Rc2 {[%clk 0:00:43.4]} 26...
Bb4 {[%clk 0:00:20.8]} 27. Rxa7 {[%clk 0:00:33.1]} 27... Bc5 {[%clk 0:00:20.1]}
28. Qe1 {[%clk 0:00:29.2]} 28... h6 {[%clk 0:00:12.3]} 29. Ra4 {[%clk 0:00:27]}
29... Kh7 {[%clk 0:00:11.9]} 30. Rf4 {[%clk 0:00:25.3]} 30... Qe7 {[%clk
0:00:11.1]} 31. Rxf8 {[%clk 0:00:24.4]} 31... Qxf8 {[%clk 0:00:12]} 32. Qxe6
{[%clk 0:00:24.6]} 32... Qxf2+ {[%clk 0:00:11.5]} 33. Rxf2 {[%clk 0:00:24.1]}
33... Bxf2+ {[%clk 0:00:11.1]} 34. Kxf2 {[%clk 0:00:25]} 1-0

[Event "Late-Titled-Tuesday-Blitz-June-25-2024"]
[Site "Chess.com"]
[Date "2024.06.25"]
[Round "7"]
[White "Tonychess32"]
[Black "Crazy_girl99"]
[Result "1-0"]
[WhiteElo "2557"]
[BlackElo "2690"]
[TimeControl "180+1"]
[EndTime "15:16:11 PDT"]
[Termination "Tonychess32 won by checkmate"]

1. e4 {[%clk 0:03:00.9]} 1... e5 {[%clk 0:03:00.1]} 2. Bc4 {[%clk 0:03:00.4]}
2... Nf6 {[%clk 0:02:59.2]} 3. d3 {[%clk 0:03:00.7]} 3... Nc6 {[%clk 0:02:59.4]}
4. Nf3 {[%clk 0:03:01.1]} 4... Bc5 {[%clk 0:02:59.6]} 5. Bb3 {[%clk 0:03:01.4]}
5... d6 {[%clk 0:02:59]} 6. c3 {[%clk 0:03:01.9]} 6... Bb6 {[%clk 0:02:58.5]} 7.
Nbd2 {[%clk 0:03:02.2]} 7... O-O {[%clk 0:02:58.4]} 8. O-O {[%clk 0:03:02]} 8...
Re8 {[%clk 0:02:56.7]} 9. h3 {[%clk 0:03:01.8]} 9... h6 {[%clk 0:02:56.5]} 10.
Re1 {[%clk 0:03:02.1]} 10... Be6 {[%clk 0:02:54.9]} 11. Nf1 {[%clk 0:03:02.1]}
11... d5 {[%clk 0:02:55.2]} 12. Qe2 {[%clk 0:03:01.9]} 12... d4 {[%clk
0:02:54.5]} 13. Ng3 {[%clk 0:03:01.1]} 13... Qd7 {[%clk 0:02:53.5]} 14. Bc2
{[%clk 0:03:00.6]} 14... Rad8 {[%clk 0:02:51.2]} 15. Kh2 {[%clk 0:03:00.8]}
15... Nh7 {[%clk 0:02:33.4]} 16. Nh4 {[%clk 0:02:56.2]} 16... Ne7 {[%clk
0:02:29]} 17. Rf1 {[%clk 0:02:40.5]} 17... dxc3 {[%clk 0:02:22.9]} 18. bxc3
{[%clk 0:02:40.2]} 18... c6 {[%clk 0:02:23]} 19. Qh5 {[%clk 0:02:28.3]} 19...
Nf6 {[%clk 0:02:14.5]} 20. Qf3 {[%clk 0:02:22.5]} 20... Nh7 {[%clk 0:02:14.3]}
21. Qh5 {[%clk 0:02:02.3]} 21... Rf8 {[%clk 0:02:08.4]} 22. Bxh6 {[%clk
0:01:47.2]} 22... gxh6 {[%clk 0:02:06.2]} 23. Qxh6 {[%clk 0:01:47.6]} 23... f6
{[%clk 0:01:54.6]} 24. f4 {[%clk 0:01:38.5]} 24... exf4 {[%clk 0:01:46.5]} 25.
Rxf4 {[%clk 0:01:20.3]} 25... Bc7 {[%clk 0:01:46.1]} 26. e5 {[%clk 0:00:54.7]}
26... fxe5 {[%clk 0:01:33.1]} 27. d4 {[%clk 0:00:40.8]} 27... Nd5 {[%clk
0:01:30.4]} 28. Bxh7+ {[%clk 0:00:37.8]} 28... Qxh7 {[%clk 0:01:25.5]} 29. Qxe6+
{[%clk 0:00:37.6]} 29... Kh8 {[%clk 0:01:12.2]} 30. Ng6+ {[%clk 0:00:35.3]}
30... Qxg6 {[%clk 0:00:47.8]} 31. Qxg6 {[%clk 0:00:31.9]} 31... exf4 {[%clk
0:00:47.6]} 32. Nf5 {[%clk 0:00:21.4]} 32... f3+ {[%clk 0:00:45.3]} 33. g3
{[%clk 0:00:21.8]} 33... Rd7 {[%clk 0:00:38.7]} 34. Rf1 {[%clk 0:00:19.4]} 34...
Rdf7 {[%clk 0:00:11.2]} 35. Rxf3 {[%clk 0:00:17.5]} 35... Rf6 {[%clk 0:00:10.9]}
36. Qh5+ {[%clk 0:00:17.3]} 36... Kg8 {[%clk 0:00:11.3]} 37. Qg5+ {[%clk
0:00:16.7]} 37... Kh7 {[%clk 0:00:08.8]} 38. Qg7# {[%clk 0:00:16.7]} 1-0